fUSD/lending_fUSD_20251024
["ID","MTS","AMOUNT","RATE_DAILY","PERIOD"]
[392328413,1761345040005,-371.681602,0.00036807,2]
[392328414,1761345040014,-7379.76513439,0.00036807,2]
[392328415,1761345040024,-550.0,0.00036807,2]
[392328416,1761345040034,-1023.96654455,0.00036807,2]
[392328417,1761345040043,-1060.51664581,0.00036807,7]
[392328418,1761345040052,-2489.34534861,0.00036807,2]
[392328419,1761345040062,-1616.29938423,0.00036807,18]
[392328420,1761345040071,-5220.898587,0.00036807,2]
[392328421,1761345040081,-6000.0,0.00036807,2]
[392328422,1761345040090,-380.8618433,0.00036807,2]
[392328423,1761345040099,-1491.19156126,0.00036807,2]
[392328424,1761345040109,-813.57014976,0.00036807,2]
[392328425,1761345040119,-558.36802025,0.00036807,5]
[392328426,1761345040128,-7846.33219824,0.00036807,2]
[392328427,1761345040137,-500.0,0.00036807,2]
[392328428,1761345040146,-150.0,0.00036829,7]
[392328429,1761345040156,-150.0,0.00036829,7]
[392328430,1761345040166,-150.0,0.00036829,7]
[392328431,1761345040175,-150.0,0.00036829,7]
[392328432,1761345040185,-500.0,0.00036873,5]
[392328433,1761345040194,-501.49068223,0.00036873,5]
[392328434,1761345040209,-500.0,0.00036873,5]
[392328435,1761345040219,-500.0,0.00036873,5]
[392328436,1761345040230,-500.0,0.00036873,5]
[392328437,1761345040242,-500.0,0.00036873,5]
[392328438,1761345040252,-384.7553,0.00036888,7]
[392328439,1761345040262,-5888.0,0.0003692,2]
[392328440,1761345040272,-168.0,0.00037025,7]
[392328441,1761345040283,-150.0,0.00037044,7]
[392328442,1761345040292,-3678.01872499,0.00037062,2]
[392328443,1761345040302,-13816.76023693,0.00037062,2]
[392328444,1761345040311,-200.0,0.00037131,2]
[392328445,1761345040320,-162.7032254,0.000372,120]
[392328446,1761345040329,-162.70322538,0.000372,120]
[392328447,1761345040339,-168.0,0.00037242,2]
[392328448,1761345040348,-19516.19754949,0.0003739,14]
[392328449,1761345040357,-3475.0,0.0003741,2]
[392328450,1761345040374,-3475.0,0.0003741,7]
[392328451,1761345040383,-3678.01872499,0.00037417,2]
[392328452,1761345040393,-13816.76023693,0.00037417,2]
[392328453,1761345040402,-1000.0,0.00037421,5]
[392328454,1761345040410,-1000.0,0.00037421,5]
[392328455,1761345040420,-1000.0,0.00037421,5]
[392328456,1761345040429,-150.0,0.00037425,2]
[392328457,1761345040438,-821.76994446,0.00037467,2]
[392328458,1761345040447,-150.0,0.00037475,7]
[392328459,1761345040456,-150.0,0.00037475,7]
[392328460,1761345040466,-1826.0,0.000375,2]
[392328461,1761345040476,-300.0,0.000375,2]
[392328462,1761345040486,-344.75363738,0.000375,2]
[392328463,1761345040496,-160.62155377,0.00037571,15]
[392328464,1761345040505,-600.0,0.000376,13]
[392328465,1761345040514,-821.76994446,0.00037637,2]
[392328466,1761345040524,-20146.35564494,0.0003767,2]
[392328467,1761345040534,-3601.94624,0.0003767,2]
[392328468,1761345040545,-300.0,0.00037671,120]
[392328469,1761345040555,-157.216,0.00037685,49]
[392328470,1761345040566,-1300.0,0.000377,13]
[392328471,1761345040575,-3678.01872499,0.00037771,2]
[392328472,1761345040587,-13816.76023693,0.00037771,2]
[392328473,1761345040597,-678.86657509,0.00037774,30]
[392328474,1761345040813,-150.0,0.00037798,7]
[392328475,1761345040827,-150.0,0.00037798,7]
[392328476,1761345040838,-150.0,0.00037798,7]
[392328477,1761345040847,-1900.0,0.000378,13]
[392328478,1761345040860,-1000.0,0.000378,7]
[392328479,1761345040870,-150.0,0.00037808,2]
[392328480,1761345040879,-886.43220187,0.00037811,2]
[392328481,1761345040889,-500.0,0.0003787,30]
[392328482,1761345040898,-1397.3659,0.00037899,2]
[392328483,1761345040908,-180.4704,0.00037899,2]
[392328484,1761345040917,-254.9444,0.00037899,2]
[392328485,1761345040926,-233.7175,0.00037899,2]
[392328486,1761345040935,-279.0283,0.00037899,2]
[392328487,1761345040945,-1000.0,0.00037899,2]
[392328488,1761345040955,-2500.0,0.00037899,2]
[392328489,1761345040964,-26647.3871,0.000379,2]
[392328490,1761345040974,-1000.0,0.000379,2]
[392328491,1761345040984,-1005.92266824,0.000379,10]
[392328492,1761345040994,-2600.0,0.000379,13]
[392328493,1761345041003,-1000.0,0.000379,7]
[392328494,1761345041012,-150.0,0.00037906,7]
[392328495,1761345041022,-300.0,0.00037924,2]
[392328496,1761345041031,-500.0,0.00037968,5]
[392328497,1761345041041,-300.0,0.00037973,2]
[392328498,1761345041050,-500.0,0.00037973,5]
[392328499,1761345041060,-500.0,0.00037973,5]
[392328500,1761345041069,-487.77039117,0.00037973,5]
[392328501,1761345041079,-500.0,0.00037973,5]
[392328502,1761345041089,-500.0,0.00037973,2]
[392328503,1761345041098,-500.0,0.00037973,5]
[392328504,1761345041108,-500.0,0.00037973,5]
[392328505,1761345041117,-500.0,0.00037973,5]
[392328506,1761345041126,-501.53794578,0.00037973,5]
[392328507,1761345041136,-500.0,0.00037973,5]
[392328508,1761345041145,-500.0,0.00037973,5]
[392328509,1761345041155,-500.0,0.00037973,5]
[392328510,1761345041164,-261.06368609,0.00037973,5]
[392328511,1761345041174,-200.0,0.00037973,5]
[392328512,1761345041184,-160.20702108,0.00037973,2]
[392328513,1761345041194,-160.26537923,0.00037973,5]
[392328514,1761345041212,-160.2103039,0.00037973,5]
[392328515,1761345041223,-500.0,0.00037973,5]
[392328516,1761345041233,-166.89002745,0.00037973,5]
[392328517,1761345041243,-500.0,0.00037973,5]
[392328518,1761345041252,-463.72592388,0.00037973,5]
[392328519,1761345041262,-500.0,0.00037973,5]
[392328520,1761345041272,-500.30913434,0.00037973,5]
[392328521,1761345041284,-217.90094005,0.00037973,5]
[392328522,1761345041294,-500.0,0.00037973,5]
[392328523,1761345041304,-163.8511214,0.00037973,5]
[392328524,1761345041313,-500.0,0.00037973,5]
[392328525,1761345041322,-500.0,0.00037973,5]
[392328526,1761345041331,-500.0,0.00037973,5]
[392328527,1761345041341,-500.0,0.00037973,5]
[392328528,1761345041350,-500.0,0.00037973,5]
[392328529,1761345041359,-501.31462523,0.00037973,5]
[392328530,1761345041369,-500.0,0.00037973,5]
[392328531,1761345041378,-205.34408447,0.00037973,5]
[392328532,1761345041387,-151.0,0.00037976,2]
[392328533,1761345041396,-151.0,0.00037976,2]
[392328534,1761345041405,-151.0,0.00037976,2]
[392328535,1761345041415,-151.0,0.00037976,2]
[392328536,1761345041424,-151.0,0.00037976,2]
[392328537,1761345041433,-151.0,0.00037976,2]
[392328538,1761345041442,-151.0,0.00037976,2]
[392328539,1761345041451,-151.0,0.00037976,2]
[392328540,1761345041461,-151.0,0.00037976,2]
[392328541,1761345041470,-151.0,0.00037976,2]
[392328542,1761345041479,-151.0,0.00037976,2]
[392328543,1761345041489,-151.0,0.00037976,2]
[392328544,1761345041499,-272.84897206,0.00037976,2]
[392328545,1761345041509,-151.0,0.00037976,2]
[392328546,1761345041519,-151.0,0.00037976,2]
[392328547,1761345041528,-151.0,0.00037976,2]
[392328548,1761345041538,-151.0,0.00037976,2]
[392328549,1761345041548,-151.0,0.00037976,2]
[392328550,1761345041557,-151.0,0.00037976,2]
[392328551,1761345041567,-151.0,0.00037976,2]
[392328552,1761345041576,-151.0,0.00037976,2]
[392328553,1761345041586,-151.0,0.00037976,2]
[392328554,1761345041596,-151.0,0.00037976,2]
[392328555,1761345041605,-151.0,0.00037976,2]
[392328556,1761345041615,-151.0,0.00037976,2]
[392328557,1761345041624,-151.0,0.00037976,2]
[392328558,1761345041633,-151.0,0.00037976,2]
[392328559,1761345041642,-151.0,0.00037976,2]
[392328560,1761345041652,-151.0,0.00037976,2]
[392328561,1761345041661,-151.0,0.00037976,2]
[392328562,1761345041671,-151.0,0.00037976,2]
[392328563,1761345041680,-151.0,0.00037976,2]
[392328564,1761345041689,-500.0,0.00037982,2]
[392328565,1761345041698,-47761.08976115,0.00037983,2]
[392328566,1761345041707,-292.42095303,0.00037983,2]
[392328567,1761345041717,-88458.2269945,0.00037989,3]
[392328568,1761345041726,-151.0,0.00037989,30]
[392328569,1761345041735,-151.0,0.00037989,30]
[392328570,1761345041744,-151.0,0.00037989,30]
[392328571,1761345041754,-151.0,0.00037989,30]
[392328572,1761345041763,-191.261059,0.00037989,30]
[392328573,1761345041772,-191.261059,0.00037989,30]
[392328574,1761345041782,-191.261059,0.00037989,30]
[392328575,1761345041791,-191.261059,0.00037989,30]
[392328576,1761345041800,-151.0,0.00037989,30]
[392328577,1761345041809,-157.961088,0.00037989,30]
[392328578,1761345041820,-151.0,0.00037989,30]
[392328579,1761345041830,-157.961088,0.00037989,30]
[392328580,1761345041839,-157.961088,0.00037989,30]
[392328581,1761345041848,-151.0,0.00037989,30]
[392328582,1761345041857,-157.961088,0.00037989,30]
[392328583,1761345041867,-151.0,0.00037989,30]
[392328584,1761345041878,-500.0,0.00037998,2]
[392328585,1761345041888,-68330.35927333,0.00037999,2]
[392328586,1761345041897,-14460.4710581,0.00037999,2]
[392328587,1761345041906,-1953.0759898,0.00037999,2]
[392328588,1761345041916,-51770.5678694,0.00037999,2]
[392328589,1761345041926,-2338.7098613,0.00037999,2]
[392328590,1761345041935,-4463.7812773,0.00037999,2]
[392328591,1761345041945,-3022.129574,0.00037999,2]
[392328592,1761345041954,-4540.7554595,0.00037999,2]
[392328593,1761345041963,-6197.6272766,0.00037999,2]
[392328594,1761345041972,-89719.8408252,0.00037999,2]
[392328595,1761345041982,-82552.4987279,0.00037999,2]
[392328596,1761345041991,-151.0,0.00037999,30]
[392328597,1761345042000,-151.0,0.00037999,30]
[392328598,1761345042010,-151.0,0.00037999,30]
[392328599,1761345042020,-151.0,0.00037999,30]
[392328600,1761345042030,-151.0,0.00037999,30]
[392328601,1761345042039,-151.0,0.00037999,30]
[392328602,1761345042049,-248.879167,0.00037999,30]
[392328603,1761345042058,-151.0,0.00037999,30]
[392328604,1761345042068,-151.0,0.00037999,30]
[392328605,1761345042077,-151.0,0.00037999,30]
[392328606,1761345042087,-151.0,0.00037999,30]
[392328607,1761345042097,-151.0,0.00037999,30]
[392328608,1761345042107,-151.0,0.00037999,30]
[392328609,1761345042117,-151.0,0.00037999,30]
[392328610,1761345042126,-168.61578,0.00037999,30]
[392328611,1761345042136,-291.32004,0.00037999,30]
[392328612,1761345042146,-151.0,0.00037999,30]
[392328613,1761345042156,-151.0,0.00037999,30]
[392328614,1761345042165,-151.0,0.00037999,30]
[392328615,1761345042175,-151.0,0.00037999,30]
[392328616,1761345042185,-151.0,0.00037999,30]
[392328617,1761345042194,-151.0,0.00037999,30]
[392328618,1761345042208,-151.0,0.00037999,30]
[392328619,1761345042219,-151.0,0.00037999,30]
[392328620,1761345042229,-151.0,0.00037999,30]
[392328621,1761345042237,-151.0,0.00037999,30]
[392328622,1761345042246,-151.0,0.00037999,30]
[392328623,1761345042254,-151.0,0.00037999,30]
[392328624,1761345042263,-151.0,0.00037999,30]
[392328625,1761345042271,-151.0,0.00037999,30]
[392328626,1761345042279,-151.0,0.00037999,30]
[392328627,1761345042287,-151.0,0.00037999,30]
[392328629,1761345042297,-271.347679,0.00037999,30]
[392328631,1761345042308,-271.347679,0.00037999,30]
[392328633,1761345042318,-271.347679,0.00037999,30]
[392328635,1761345042327,-271.347679,0.00037999,30]
[392328637,1761345042337,-271.347679,0.00037999,30]
[392328638,1761345042347,-271.347679,0.00037999,30]
[392328639,1761345042358,-271.347679,0.00037999,30]
[392328640,1761345042370,-271.347679,0.00037999,30]
[392328641,1761345042379,-151.0,0.00037999,30]
[392328642,1761345042388,-151.0,0.00037999,30]
[392328643,1761345042398,-151.0,0.00037999,30]
[392328644,1761345042407,-151.0,0.00037999,30]
[392328645,1761345042416,-191.261059,0.00037999,30]
[392328646,1761345042425,-191.261059,0.00037999,30]
[392328647,1761345042434,-191.261059,0.00037999,30]
[392328648,1761345042443,-191.261059,0.00037999,30]
[392328649,1761345042453,-151.0,0.00037999,30]
[392328650,1761345042462,-157.961088,0.00037999,30]
[392328651,1761345042472,-151.0,0.00037999,30]
[392328652,1761345042482,-157.961088,0.00037999,30]
[392328653,1761345042491,-157.961088,0.00037999,30]
[392328654,1761345042500,-157.961088,0.00037999,30]
[392328655,1761345042509,-151.0,0.00037999,30]
[392328656,1761345042519,-200.0,0.00038023,10]
[392328657,1761345042528,-701.56813464,0.00038033,2]
[392328658,1761345042538,-5000.0,0.00038043,2]
[392328660,1761345042547,-200.7149973,0.00038046,2]
[392328662,1761345042556,-17691.6453989,0.00038046,3]
[392328664,1761345042566,-251.88526133,0.00038046,2]
[392328666,1761345042575,-330.25050499,0.00038046,2]
[392328667,1761345042584,-200.0,0.00038048,10]
[392328669,1761345042594,-5284.2788,0.00038056,2]
[392328670,1761345042603,-1000.0,0.00038056,120]
[392328671,1761345042612,-168.0,0.00038086,2]
[392328672,1761345042622,-150.4,0.00038099,2]
[392328673,1761345042631,-10740.43642811,0.000381,2]
[392328674,1761345042640,-1000.0,0.000381,7]
[392328675,1761345042649,-500.0,0.00038109,2]
[392328676,1761345042659,-500.0,0.00038109,2]
[392328677,1761345042668,-818.0,0.00038109,2]
[392328678,1761345042677,-299.76347407,0.00038109,2]
[392328679,1761345042687,-3678.01872499,0.00038126,2]
[392328680,1761345042696,-13816.76023693,0.00038126,2]
[392328681,1761345042705,-500.0,0.00038133,30]
[392328682,1761345042714,-2630.0,0.00038135,5]
[392328683,1761345042724,-35383.2907978,0.00038136,3]
[392328684,1761345042733,-150.4,0.00038136,2]
[392328685,1761345042743,-316.0,0.00038143,7]
[392328686,1761345042752,-70766.5815956,0.00038146,3]
[392328687,1761345042762,-82408.2080945,0.00038146,3]
[392328688,1761345042771,-150.4,0.00038146,2]
[392328689,1761345042780,-151.0,0.00038146,30]
[392328690,1761345042790,-166.582358,0.00038146,30]
[392328691,1761345042799,-151.0,0.00038146,30]
[392328692,1761345042808,-151.0,0.00038146,30]
[392328693,1761345042819,-151.0,0.00038146,30]
[392328694,1761345042828,-151.0,0.00038146,30]
[392328695,1761345042838,-151.0,0.00038146,30]
[392328696,1761345042847,-151.0,0.00038146,30]
[392328697,1761345042859,-191.261059,0.00038146,30]
[392328698,1761345042869,-191.261059,0.00038146,30]
[392328699,1761345042878,-191.261059,0.00038146,30]
[392328700,1761345042889,-191.261059,0.00038146,30]
[392328701,1761345042899,-151.0,0.00038146,30]
[392328702,1761345042908,-157.961088,0.00038146,30]
[392328703,1761345042918,-157.961088,0.00038146,30]
[392328704,1761345042928,-157.961088,0.00038146,30]
[392328705,1761345042937,-157.961088,0.00038146,30]
[392328706,1761345042948,-151.0,0.00038146,30]
[392328707,1761345042958,-203.08352609,0.00038147,2]
[392328708,1761345042969,-500.0,0.00038155,2]
[392328709,1761345042978,-165630.0807,0.00038156,2]
[392328710,1761345042988,-157.377423,0.00038156,30]
[392328711,1761345042997,-157.377423,0.00038156,30]
[392328712,1761345043006,-157.377423,0.00038156,30]
[392328713,1761345043016,-157.377423,0.00038156,30]
[392328714,1761345043026,-151.0,0.00038156,30]
[392328715,1761345043035,-151.0,0.00038156,30]
[392328716,1761345043045,-151.0,0.00038156,30]
[392328717,1761345043055,-151.0,0.00038156,30]
[392328718,1761345043064,-151.0,0.00038156,30]
[392328719,1761345043074,-151.0,0.00038156,30]
[392328720,1761345043083,-151.0,0.00038156,30]
[392328721,1761345043092,-151.0,0.00038156,30]
[392328722,1761345043102,-151.0,0.00038156,30]
[392328723,1761345043111,-151.0,0.00038156,30]
[392328724,1761345043120,-151.0,0.00038156,30]
[392328725,1761345043129,-151.0,0.00038156,30]
[392328726,1761345043139,-151.0,0.00038156,30]
[392328727,1761345043148,-151.0,0.00038156,30]
[392328728,1761345043158,-151.0,0.00038156,30]
[392328729,1761345043167,-271.347679,0.00038156,30]
[392328730,1761345043176,-271.347679,0.00038156,30]
[392328731,1761345043186,-271.347679,0.00038156,30]
[392328732,1761345043196,-271.347679,0.00038156,30]
[392328733,1761345043272,-151.0,0.00038156,30]
[392328734,1761345043283,-151.0,0.00038156,30]
[392328735,1761345043292,-301.588515,0.00038156,30]
[392328736,1761345043302,-191.261059,0.00038156,30]
[392328737,1761345043310,-191.261059,0.00038156,30]
[392328738,1761345043319,-191.261059,0.00038156,30]
[392328739,1761345043328,-191.261059,0.00038156,30]
[392328740,1761345043337,-157.961088,0.00038156,30]
[392328741,1761345043346,-157.961088,0.00038156,30]
[392328742,1761345043355,-157.961088,0.00038156,30]
[392328743,1761345043364,-157.961088,0.00038156,30]
[392328744,1761345043373,-151.0,0.00038156,30]
[392328745,1761345043382,-2263.68673042,0.00038162,3]
[392328746,1761345043397,-3731.7151634,0.00038162,3]
[392328749,1761345045606,-502.1985,0.00036707,2]
[392328750,1761345368678,1097.35335759,0.0003673,30]
[392328751,1761345452947,6898.0,0.00027397,120]
[392328753,1761345668149,-219.36,0.00017794,2]
[392328754,1761345668179,-77.6889,0.0001873,2]
[392328776,1761345934778,-141.6711,0.0001873,2]
[392328777,1761345934800,-217.92095453,0.00019667,2]
[392328787,1761346085695,-1.43904547,0.00019667,2]
[392328788,1761346231697,-219.36,0.00020604,2]
[392328789,1761346231706,-75.10137287,0.0002154,2]
[392328790,1761346231814,-144.25862713,0.0002154,2]
[392328791,1761346231823,-219.36,0.00022477,2]
[392328792,1761346231832,-656.63868883,0.00022664,2]
[392328793,1761346231841,-219.36,0.00023413,2]
[392328794,1761346231851,-219.36,0.0002435,2]
[392328795,1761346231860,-219.36,0.00025286,2]
[392328796,1761346231869,-219.36,0.00026223,2]
[392328797,1761346231878,-219.36,0.00027159,2]
[392328798,1761346231887,-219.36,0.00028096,2]
[392328799,1761346231896,-219.36,0.00029032,2]
[392328800,1761346231906,-219.36,0.00029969,2]
[392328801,1761346231916,-219.36,0.00030905,2]
[392328802,1761346231925,-219.36,0.00031842,2]
[392328803,1761346231935,-219.36,0.00032778,2]
[392328804,1761346231944,-52.22224995,0.00033715,2]
[392328805,1761346231966,-167.13775005,0.00033715,2]
[392328806,1761346231977,-666.0,0.00033977,3]
[392328807,1761346231986,-1000.0,0.00034545,2]
[392328809,1761346231995,-300.0,0.00034548,7]
[392328811,1761346232006,-219.36,0.00034651,2]
[392328813,1761346232015,-150.0,0.00034989,7]
[392328814,1761346232024,-150.0,0.00034989,7]
[392328815,1761346232034,-150.0,0.00034989,7]
[392328816,1761346232044,-150.0,0.00034989,7]
[392328817,1761346232053,-126.26448024,0.00034989,7]
[392328818,1761346232082,-23.73551976,0.00034989,7]
[392328819,1761346232092,-150.0,0.00034989,7]
[392328821,1761346232102,-150.0,0.00034989,7]
[392328822,1761346232111,-157.02041754,0.00034989,7]
[392328824,1761346232120,-150.0,0.00034989,7]
[392328826,1761346232129,-150.0,0.00034989,7]
[392328828,1761346232138,-184.359,0.00035232,2]
[392328830,1761346232147,-166.66,0.00035265,30]
[392328832,1761346232157,-150.0,0.00035378,7]
[392328833,1761346232167,-209.0,0.00035572,120]
[392328834,1761346232175,-219.36,0.00035588,2]
[392328835,1761346232185,-1676.0,0.00035764,2]
[392328836,1761346232194,-150.0,0.00035767,7]
[392328837,1761346232203,-150.0,0.00035767,7]
[392328838,1761346232212,-150.0,0.00035767,7]
[392328839,1761346232222,-1583.0,0.00035821,120]
[392328840,1761346232230,-209.0,0.00035926,2]
[392328841,1761346232240,-189.578,0.00035926,43]
[392328842,1761346232249,-150.0,0.00035961,7]
[392328843,1761346232258,-1500.0,0.00035995,120]
[392328844,1761346232267,-1000.0,0.00035995,2]
[392328845,1761346232276,-157.56,0.00035995,120]
[392328846,1761346232285,-464.27,0.00035995,2]
[392328847,1761346232295,-166.66,0.00036007,30]
[392328848,1761346232304,-150.0,0.00036155,7]
[392328849,1761346232314,-500.0,0.00036185,30]
[392328850,1761346232325,-500.0,0.00036196,30]
[392328851,1761346232334,-500.0,0.0003627,30]
[392328852,1761346232343,-500.0,0.00036274,30]
[392328853,1761346232355,-209.0,0.00036311,2]
[392328854,1761346232364,-25343.97305667,0.00036406,30]
[392328855,1761346232374,-476.35224409,0.00036406,30]
[392328856,1761346232383,-209.0,0.00036416,7]
[392328857,1761346232392,-500.0,0.00036451,30]
[392328858,1761346232401,-209.0,0.00036497,7]
[392328859,1761346232411,-150.0,0.00036544,7]
[392328860,1761346232420,-150.0,0.00036544,7]
[392328861,1761346232430,-150.0,0.00036544,7]
[392328862,1761346232440,-200.0,0.00036545,4]
[392328863,1761346232450,-209.0,0.00036586,7]
[392328864,1761346232460,-168.0,0.00036604,2]
[392328865,1761346232470,-193.84634402,0.00036606,15]
[392328866,1761346232479,-230.76511616,0.00036606,15]
[392328867,1761346232488,-363.88658614,0.00036606,15]
[392328868,1761346232498,-279.0283,0.00036607,2]
[392328869,1761346232507,-1397.3659,0.00036607,2]
[392328870,1761346232516,-180.4704,0.00036607,2]
[392328871,1761346232526,-6123.0249,0.00036608,2]
[392328872,1761346232535,-233.7175,0.00036608,2]
[392328873,1761346232544,-500.0,0.00036613,30]
[392328874,1761346232553,-1536.58777409,0.00036618,2]
[392328875,1761346232562,-15251.14303699,0.00036629,2]
[392328876,1761346232571,-209.0,0.00036631,2]
[392328877,1761346232580,-869.39749678,0.00036649,2]
[392328878,1761346232589,-203.08352609,0.00036688,2]
[392328879,1761346232599,-943.750457,0.000367,22]
[392328880,1761346232608,-500.0,0.00036703,30]
[392328881,1761346232617,-33170.7581,0.00036707,2]
[392328882,1761346232626,-1000.0,0.00036707,2]
[392328883,1761346232635,-330.25050499,0.00036707,2]
[392328884,1761346232644,-251.88526133,0.00036707,2]
[392328885,1761346232653,-151.0,0.00036708,2]
[392328886,1761346232662,-151.0,0.00036708,2]
[392328887,1761346232672,-151.0,0.00036708,2]
[392328888,1761346232681,-151.0,0.00036708,2]
[392328889,1761346232692,-151.0,0.00036708,2]
[392328890,1761346232701,-151.0,0.00036708,2]
[392328891,1761346232712,-151.0,0.00036708,2]
[392328892,1761346232722,-151.0,0.00036708,2]
[392328893,1761346232731,-151.0,0.00036708,2]
[392328894,1761346232740,-151.0,0.00036708,2]
[392328895,1761346232749,-151.0,0.00036708,2]
[392328896,1761346232758,-151.0,0.00036708,2]
[392328897,1761346232767,-151.0,0.00036708,2]
[392328898,1761346232776,-151.0,0.00036708,2]
[392328899,1761346232786,-151.0,0.00036708,2]
[392328900,1761346232795,-151.0,0.00036708,2]
[392328901,1761346232805,-151.0,0.00036708,2]
[392328902,1761346232815,-151.0,0.00036708,2]
[392328903,1761346232824,-151.0,0.00036708,2]
[392328904,1761346232834,-151.0,0.00036708,2]
[392328905,1761346232844,-151.0,0.00036708,2]
[392328906,1761346232853,-151.0,0.00036708,2]
[392328907,1761346232862,-151.0,0.00036708,2]
[392328908,1761346232872,-151.0,0.00036708,2]
[392328909,1761346232882,-272.84897206,0.00036708,2]
[392328910,1761346232892,-151.0,0.00036708,2]
[392328911,1761346232901,-151.0,0.00036708,2]
[392328912,1761346232911,-151.0,0.00036708,2]
[392328913,1761346232920,-151.0,0.00036708,2]
[392328914,1761346232930,-151.0,0.00036708,2]
[392328915,1761346232940,-151.0,0.00036708,2]
[392328916,1761346232950,-151.0,0.00036708,2]
[392328917,1761346232959,-151.0,0.00036708,2]
[392328918,1761346232968,-151.0,0.00036708,2]
[392328919,1761346232978,-151.0,0.00036708,2]
[392328920,1761346232987,-151.0,0.00036708,2]
[392328921,1761346232995,-151.0,0.00036708,2]
[392328922,1761346233007,-151.0,0.00036708,2]
[392328923,1761346233017,-151.0,0.00036708,2]
[392328924,1761346233026,-151.0,0.00036708,2]
[392328925,1761346233035,-151.0,0.00036708,2]
[392328926,1761346233044,-151.0,0.00036708,2]
[392328927,1761346233054,-151.0,0.00036708,2]
[392328928,1761346233062,-151.0,0.00036708,2]
[392328929,1761346233072,-151.0,0.00036708,2]
[392328930,1761346233081,-271.79,0.00036719,3]
[392328931,1761346233090,-378.35,0.00036719,2]
[392328932,1761346233100,-168.0,0.00036725,2]
[392328933,1761346233110,-229.63852322,0.00036728,120]
[392328934,1761346233119,-500.0,0.00036728,30]
[392328935,1761346233128,-500.0,0.00036728,30]
[392328936,1761346233138,-500.0,0.00036728,7]
[392328937,1761346233147,-500.0,0.00036728,30]
[392328938,1761346233156,-500.0,0.00036728,2]
[392328939,1761346233165,-500.0,0.00036728,30]
[392328940,1761346233174,-500.0,0.00036728,30]
[392328941,1761346233186,-500.0,0.00036728,30]
[392328942,1761346233195,-500.0,0.00036728,2]
[392328943,1761346233204,-500.0,0.00036729,30]
[392328944,1761346233213,-500.0,0.00036729,30]
[392328945,1761346233223,-8581.2225891,0.00036729,30]
[392328946,1761346233232,-44557.60937186,0.00036729,2]
[392328947,1761346233245,-23376.12867985,0.00036729,2]
[392328948,1761346233256,-95940.97414086,0.00036729,2]
[392328954,1761346237622,-165.1252525,0.00036729,2]
[392328955,1761346237633,-2446.43780743,0.00036729,2]
[392328956,1761346237643,-156.4,0.00036729,2]
[392328957,1761346237652,-4171.74569363,0.00036729,30]
[392328958,1761346237662,-166.66,0.00036749,30]
[392328959,1761346237672,-500.0,0.00036752,30]
[392328960,1761346237682,-500.0,0.000368,5]
[392328961,1761346237691,-500.0,0.000368,5]
[392328962,1761346237700,-500.0,0.000368,5]
[392328963,1761346237710,-500.0,0.000368,3]
[392328964,1761346237719,-500.0,0.000368,5]
[392328965,1761346237729,-500.0,0.000368,5]
[392328966,1761346237738,-500.0,0.000368,2]
[392328967,1761346237748,-500.0,0.000368,5]
[392328968,1761346237757,-500.0,0.000368,5]
[392328969,1761346237767,-500.0,0.000368,5]